Cogmind - Beta 12 @@@ ROGUE MODE // 2023.09.25 @ 21:07:26 Player: Delioz Result: Destroyed by EI-DRW(z) via exploding Z-Power Performance ------------- Evolutions (1) 500 Regions Visited (6) 1200 Robots Destroyed (18) 90 Value Destroyed (344) 344 Prototype IDs (2) 40 Alien Tech Used (0) 0 Bonus (1633) 1633 TOTAL SCORE: 3807 Bonus ------- Follower Combat Kills 33 Met Imprinter 300 Was Imprinted 300 Destroyed Z-Imprinter 1000 Cogmind --------- Core Integrity 0/400 Matter 295/300 Energy 41/100 System Corruption 0% Temperature Cool (0) Movement Core (150) Ox2 Location -7/Deep Caves Parts ------- > --- POWER (1) -------- (None) > --- PROPULSION (3) --- (None) > --- UTILITY (3) ------ Surveybot 24 Chip > --- WEAPON (2) ------- RU-N14's Throwing Claymores > --- INVENTORY (5) ---- Large Matter Pod (110) Hacking Drone Bay (1/1) RU-N14's Throwing Claymores (10) RU-N14's Throwing Claymores (10) CR-A16's Pointy Stick Peak State ------------ > --- POWER ------------ Light Ion Engine > --- PROPULSION ------- Wheel Wheel Flight Unit > --- UTILITY ---------- Small Storage Unit Surveybot 24 Scanner Surveybot 24 Chip > --- WEAPON ----------- Mining Laser CR-A16's Pointy Stick > --- INVENTORY -------- Large Matter Pod Hacking Drone Bay RU-N14's Throwing Claymores RU-N14's Throwing Claymores RU-N14's Throwing Claymores RU-N14's Throwing Claymores GAL Module [Rating: 30] Favorites ----------- Power Light Ion Engine Engine Light Ion Engine Propulsion Wheel Wheel Wheel Hover Unit Improved Hover Unit Flight Unit Flight Unit Utility Small Storage Unit Device Hacking Drone Bay Storage Small Storage Unit Processor Surveybot 24 Chip Weapon Heavy Assault Rifle Energy Gun Small Laser Ballistic Gun Heavy Assault Rifle Launcher Rocket Launcher Special Weapon RU-N14's Throwing Claymores Piercing Weapon CR-A16's Pointy Stick Build | -11 -10 -10 -9 -9 -7 -7 ------- Run | Jun Mat Min Mat Min Zio Dee Slots Evolved 2 | . . . 2 . . . Power . | . . . . . . . Propulsion 1 | . . . 1 . . . Utility 1 | . . . 1 . . . Weapon . | . . . . . . . Parts Attached 38 | 6 1 7 9 2 4 9 Power 3 | 1 . . 1 . . 1 Engine 3 | 1 . . 1 . . 1 Core . | . . . . . . . Reactor . | . . . . . . . Propulsion 10 | 2 . 2 3 . 2 1 Treads . | . . . . . . . Leg . | . . . . . . . Wheel 6 | 2 . 2 . . 2 . Hover 3 | . . . 3 . . . Flight 1 | . . . . . . 1 Utility 6 | 1 1 . 1 . 1 2 Device 2 | . . . . . 1 1 Storage 2 | 1 1 . . . . . Processor 2 | . . . 1 . . 1 Hackware . | . . . . . . . Protection . | . . . . . . . Artifact . | . . . . . . . Weapon 19 | 2 . 5 4 2 1 5 Energy Gun 2 | 1 . 1 . . . . Energy Cannon . | . . . . . . . Ballistic Gun 5 | 1 . 1 2 1 . . Ballistic Cannon . | . . . . . . . Launcher 4 | . . 2 1 1 . . Special Weapon 7 | . . 1 1 . 1 4 Impact Weapon . | . . . . . . . Slashing Weapon . | . . . . . . . Piercing Weapon 1 | . . . . . . 1 Special Melee Weapon . | . . . . . . . Unidentified Prototypes 2 | . . . . . 2 . Parts Lost 15 | . . 3 1 4 . 7 Power 3 | . . 1 . 1 . 1 Propulsion 6 | . . 2 . 1 . 3 Utility 3 | . . . . 1 . 2 Weapon 3 | . . . 1 1 . 1 Highest Loss Streak 7 | . . 3 1 4 . 7 To Critical Strikes . | . . . . . . . Average Slot Usage (%) 83 | . 100 89 76 73 81 84 Engine 2 | . 14 5 3 . . . Wheel 20 | . 28 26 14 . 19 21 Hover 8 | . . . 11 26 12 4 Device 5 | . . . . . 9 10 Storage 23 | . 28 28 22 22 22 16 Energy Gun 2 | . 14 6 . . . . Ballistic Gun 9 | . 14 13 11 20 8 . Special Weapon 8 | . . 7 6 . 10 11 Piercing Weapon 1 | . . . . . . 9 Naked Turns . | . . . . . . . Heaviest Build 21 | 10 13 16 18 17 20 21 Greatest Support 21 | 20 20 20 21 21 20 20 Greatest Overweight (x) 4 | . . 3 1 . 1 4 Average Overweight (x) . | . . . . . . . Largest Inventory Capacity 8 | 8 8 8 8 8 8 8 Average Capacity 7 | 6 8 8 8 8 8 8 Most Carried 8 | . 2 8 8 7 8 8 Average Carried 7 | . . 6 7 6 7 7 Final Capacity 8 | 8 8 8 8 8 8 5 Final Carried 8 | . 2 8 7 6 8 5 Class Distribution -------------------- 100% | Mutant Dominant Class ---------------- Mutant | -10/Materials Mutant | -10/Mines Mutant | -9/Materials Mutant | -9/Mines Mutant | -7/Zion Mutant | -7/Deep Caves Resources | -11 -10 -10 -9 -9 -7 -7 ----------- Run | Jun Mat Min Mat Min Zio Dee Matter Collected 912 | 225 . 157 349 103 68 10 Remotely . | . . . . . . . Salvage Created 460 | . . 194 177 68 . 21 Parts 46 | . . 28 13 . . 5 Haulers Intercepted . | . . . . . . . Recyclers Shooed . | . . . . . . . Parts Field Recycled . | . . . . . . . Retrieved Matter . | . . . . . . . Parts Self-Destructed . | . . . . . . . Prevented . | . . . . . . . Kills | -11 -10 -10 -9 -9 -7 -7 ------- Run | Jun Mat Min Mat Min Zio Dee Combat Hostiles Destroyed 22 | . . 8 4 10 . . Guns 8 | . . 3 2 3 . . AOE 14 | . . 5 2 7 . . Classes Destroyed 8 | . . 5 1 1 . 1 Builder 2 | . . 2 . . . . Tunneler 2 | . . 2 . . . . Recycler 2 | . . 1 1 . . . Swarmer 6 | . . 6 . . . . Grunt 5 | . . 2 3 . . . Sentry 1 | . . . 1 . . . Z-Technician 1 | . . . . . . 1 Assembled 10 | . . . . 10 . . Best Kill Streak 10 | . . 5 3 10 . 1 Combat Bots Only 10 | . . 5 3 10 . . Max Kills in Single Turn 5 | . . 2 1 5 . 1 Gunslinging . | . . . . . . . Exploded 4 | . . 2 1 4 . . Melee . | . . . . . . . Uniques/NPCs Destroyed . | . . . . . . . Combat | -11 -10 -10 -9 -9 -7 -7 -------- Run | Jun Mat Min Mat Min Zio Dee Damage Taken 1693 | . 90 294 99 419 . 791 Core 538 | . 6 83 22 43 . 384 Absorbed by Shields . | . . . . . . . Core Remaining (%) 82 | 100 . 64 . . . . Volleys Fired 85 | . . 52 14 13 . 6 Largest 2 | . . 2 2 2 . 1 Hottest 120 | . . 120 100 56 . 100 Shots Fired 130 | . . 78 21 25 . 6 Gun 85 | . . 54 9 22 . . Cannon . | . . . . . . . Launcher 15 | . . 6 6 3 . . Special 30 | . . 18 6 . . 6 Kinetic 75 | . . 44 9 22 . . Thermal 37 | . . 28 6 . . 3 Explosive 18 | . . 6 6 3 . 3 Electromagnetic . | . . . . . . . Robot Hit Streak 5 | . . 3 4 3 . 5 Robot Miss Streak 7 | . . 7 2 2 . . Penetration Max . | . . . . . . . Secondary Targets 1 | . . . . 1 . . Max Gunslinging Chain 1 | . . . . 1 . . Shots Hit Robots 55 | . . 29 8 13 . 5 Core Hits 50 | . . 20 9 17 . 4 Critical Kills . | . . . . . . . Critical Parts Destroyed . | . . . . . . . Critical Strikes 1 | . . . . . . 1 Sever 1 | . . . . . . 1 Melee Attacks 2 | . . . . . . 2 Impact . | . . . . . . . Slashing . | . . . . . . . Piercing 2 | . . . . . . 2 Sneak Attacks 1 | . . . . . . 1 Combat Hostiles . | . . . . . . . Follow-up Attacks . | . . . . . . . Damage Inflicted 2142 | . . 673 245 671 . 553 Guns 469 | . . 203 77 189 . . Cannons . | . . . . . . . Explosions 1350 | . . 398 168 482 . 302 Melee 139 | . . . . . . 139 Ramming . | . . . . . . . Kinetic 425 | . . 159 77 189 . . Thermal 116 | . . 116 . . . . Explosive 1350 | . . 398 168 482 . 302 Electromagnetic . | . . . . . . . Impact . | . . . . . . . Slashing 112 | . . . . . . 112 Piercing 139 | . . . . . . 139 Highest Corruption 3 | . . . . 3 3 . Average Corruption 3 | . . . . 3 3 . Corruption Purged . | . . . . . . . Corruption Blocked . | . . . . . . . Effects 2 | . . . . 1 1 . Message Errors 1 | . . . . 1 . . Heat Flow Errors 1 | . . . . . 1 . Overload Shots . | . . . . . . . Overflow Damage 106 | . . 14 8 18 . 66 Projectiles . | . . . . . . . Explosions 49 | . . 14 8 18 . 9 Melee 57 | . . . . . . 57 Knockbacks . | . . . . . . . Impact . | . . . . . . . Kinetic . | . . . . . . . Secondary . | . . . . . . . Self-Inflicted Damage 86 | . . 42 44 . . . Shots 2 | . . 1 1 . . . Rammed . | . . . . . . . Targets Rammed . | . . . . . . . Kicked . | . . . . . . . Crushed . | . . . . . . . Highest Temperature 104 | . . 24 31 13 104 . Average Temperature 15 | . . 12 23 10 56 . Received Heat Transfer 294 | . . 9 45 69 . 171 Siege Activations . | . . . . . . . Robots Corrupted . | . . . . . . . Combat Hostiles . | . . . . . . . Parts Fried . | . . . . . . . Impact Corruptions . | . . . . . . . Robots Melted . | . . . . . . . Combat Hostiles . | . . . . . . . Parts Melted . | . . . . . . . Heat Transferred 250 | . . 250 . . . . Parts Sabotaged . | . . . . . . . Parts Stolen . | . . . . . . . Parts Stripped . | . . . . . . . Power Chain Reactions . | . . . . . . . Missiles Intercepted . | . . . . . . . Alert | -11 -10 -10 -9 -9 -7 -7 ------- Run | Jun Mat Min Mat Min Zio Dee Peak Influence 306 | . 65 272 306 141 . . Initial 118 | . . 25 42 118 . . Average 101 | . 22 112 105 116 . . Maximum Alert Level 1 | . . 1 1 . . . Low Security (%) 84 | 100 100 78 83 100 . . Level 1 15 | . . 21 16 . . . Level 2 . | . . . . . . . Level 3 . | . . . . . . . Level 4 . | . . . . . . . Level 5 . | . . . . . . . High Security . | . . . . . . . Max Security . | . . . . . . . Squads Dispatched 4 | . 1 . 3 . . . Investigation 2 | . . . 2 . . . Extermination . | . . . . . . . Reinforcement 2 | . 1 . 1 . . . Assault . | . . . . . . . Garrison . | . . . . . . . Intercept . | . . . . . . . Searches Triggered . | . . . . . . . Construction Impeded . | . . . . . . . Haulers Reinforced . | . . . . . . . Active Scanning Responses . | . . . . . . . Cargo Convoy Interrupts . | . . . . . . . Stealth | -11 -10 -10 -9 -9 -7 -7 --------- Run | Jun Mat Min Mat Min Zio Dee Distress Signals 4 | . 3 . 1 . . . Communications Jammed . | . . . . . . . Distress Signals . | . . . . . . . Times Spotted 43 | . 9 9 6 16 . 3 Peak Tracking Total 13 | . 9 5 3 13 . 6 Tactical Retreats 2 | . 1 1 . . . . Traps | -11 -10 -10 -9 -9 -7 -7 ------- Run | Jun Mat Min Mat Min Zio Dee Traps Triggered . | . . . . . . . Indirectly . | . . . . . . . Trap Hack Attempts . | . . . . . . . Triggered . | . . . . . . . Disarmed . | . . . . . . . Reprogrammed . | . . . . . . . Reused . | . . . . . . . Traps Extracted . | . . . . . . . Installed . | . . . . . . . Triggered . | . . . . . . . Machines | -11 -10 -10 -9 -9 -7 -7 ---------- Run | Jun Mat Min Mat Min Zio Dee Machines Disabled 3 | . . 2 . . . 1 Max in Single Turn 1 | . . 1 . . . 1 Machines Repaired . | . . . . . . . Machines Sabotaged . | . . . . . . . Overloaded Fab Kills . | . . . . . . . Hacking | -11 -10 -10 -9 -9 -7 -7 --------- Run | Jun Mat Min Mat Min Zio Dee Machines Accessed 4 | . 2 . 2 . . . Terminals 4 | . 2 . 2 . . . Fabricators . | . . . . . . . Repair Stations . | . . . . . . . Recycling Units . | . . . . . . . Scanalyzers . | . . . . . . . Garrison Access . | . . . . . . . Total Hacks 9 | . 4 . 5 . . . Successful 2 | . 2 . . . . . Failed 7 | . 2 . 5 . . . Catastrophic 1 | . . . 1 . . . Database Lockouts . | . . . . . . . Manual 11 | . . . . . 11 . Terminals 9 | . 4 . 5 . . . Fabricators . | . . . . . . . Repair Stations . | . . . . . . . Recycling Units . | . . . . . . . Scanalyzers . | . . . . . . . Garrison Access . | . . . . . . . Terminal Hacks 2 | . 2 . . . . . Robot Analysis 1 | . 1 . . . . . Zone Layout 1 | . 1 . . . . . Fabricator Hacks . | . . . . . . . Repair Station Hacks . | . . . . . . . Recycling Unit Hacks . | . . . . . . . Scanalyzer . | . . . . . . . Garrison Access Hacks . | . . . . . . . Unauthorized Hacks . | . . . . . . . Terminals . | . . . . . . . Fabricators . | . . . . . . . Repair Stations . | . . . . . . . Recycling Units . | . . . . . . . Scanalyzers . | . . . . . . . Garrison Access . | . . . . . . . Data Cores Recovered . | . . . . . . . Used . | . . . . . . . Hacking Detections 4 | . 2 . 2 . . . Full Trace Events 1 | . . . 1 . . . Feedback Events . | . . . . . . . Feedback Blocked . | . . . . . . . Robot Schematics Acquired . | . . . . . . . Robots Built . | . . . . . . . Authchips . | . . . . . . . Time . | . . . . . . . Total Robot Build Rating . | . . . . . . . Part Schematics Acquired . | . . . . . . . Parts Built . | . . . . . . . Authchips . | . . . . . . . Time . | . . . . . . . Total Part Build Rating . | . . . . . . . Parts Repaired . | . . . . . . . Time . | . . . . . . . Parts Recycled . | . . . . . . . Recycled Matter . | . . . . . . . Retrieved Matter . | . . . . . . . Retrieved Components . | . . . . . . . Parts Scanalyzed . | . . . . . . . Part Schematics Acquired . | . . . . . . . Parts Damaged . | . . . . . . . Bothacking | -11 -10 -10 -9 -9 -7 -7 ------------ Run | Jun Mat Min Mat Min Zio Dee Used RIF Installer . | . . . . . . . Robots Hacked . | . . . . . . . Non-combat . | . . . . . . . Combat . | . . . . . . . Robot Hacks Applied . | . . . . . . . Relay Couplers Released . | . . . . . . . Fabnet Peak Effective % . | . . . . . . . Robots Rewired . | . . . . . . . Allies Hacked . | . . . . . . . Hacks Repelled . | . . . . . . . Allies | -11 -10 -10 -9 -9 -7 -7 -------- Run | Jun Mat Min Mat Min Zio Dee Total Allies 6 | . . 2 . . 4 . Largest Group 4 | . . 2 2 2 4 . Highest-Rated Group 154 | . . 48 48 48 154 . Highest-Rated Ally 42 | . . 31 31 31 42 . Total Orders . | . . . . . . . Ally Attacks 23 | . . . 5 18 . . Total Damage 309 | . . . 82 227 . . Kills 7 | . . . 2 5 . . Allies Corrupted . | . . . . . . . Allies Melted . | . . . . . . . Intel | -11 -10 -10 -9 -9 -7 -7 ------- Run | Jun Mat Min Mat Min Zio Dee Robot Analysis Total 1 | . 1 . . . . . Derelict Logs Recovered 2 | . . 1 . . 1 . Drone Launches . | . . . . . . . Drone Recoveries . | . . . . . . . Exploration | -11 -10 -10 -9 -9 -7 -7 ------------- Run | Jun Mat Min Mat Min Zio Dee Turns Passed 2418 | 40 71 635 163 129 1107 273 Spaces Moved 2501 | 41 85 563 120 127 1307 258 Core 8 | 6 . 1 . . . 1 Treads . | . . . . . . . Legs . | . . . . . . . Wheels 2162 | 35 85 562 74 . 1149 257 Hover 331 | . . . 46 127 158 . Flight . | . . . . . . . Fastest Speed 50 | 50 80 80 52 52 56 80 Average Speed 78 | 75 80 80 69 54 79 81 Slowest Speed 250 | 80 80 200 121 56 116 250 Overloaded Moves . | . . . . . . . Propulsion Burnouts . | . . . . . . . Robots Hopped . | . . . . . . . Cave-ins Triggered . | . . . . . . . Exploration Rate (%) 40 | 3 24 86 18 27 92 32 Regions Visited 6 Branch Regions 4 Pre-discovered Areas 1 | . . 1 . . . . Known Exits Taken . | . . . . . . . Unknown Exits Taken 6 | 1 1 1 1 1 1 . Scrap Searched 4 | . . 1 . . 3 . Spaces Dug 15 | . . . 15 . . . Terrain Destroyed 161 | . . 66 68 27 . . Melee . | . . . . . . . Projectile 10 | . . 4 6 . . . AOE 151 | . . 62 62 27 . . Terrain Rammed . | . . . . . . . Walls Destroyed . | . . . . . . . Machines Disabled . | . . . . . . . Actions | -11 -10 -10 -9 -9 -7 -7 --------- Run | Jun Mat Min Mat Min Zio Dee Total 2772 | 46 87 638 164 160 1374 303 Wait 111 | . . 7 14 19 50 21 Move 2495 | 40 84 562 119 126 1306 258 Hop . | . . . . . . . Pick Up 25 | . 2 9 4 . 8 2 Fast Attach 12 | 6 1 . 3 . 1 1 Attach 11 | . . 2 3 1 2 3 Detach . | . . . . . . . Swap 15 | . . 5 3 1 1 5 Drop 14 | . . 1 4 . 6 3 Fire 85 | . . 52 14 13 . 6 Melee 2 | . . . . . . 2 Ram . | . . . . . . . Kick . | . . . . . . . Crush . | . . . . . . . Escape Stasis . | . . . . . . . Rewire 2 | . . . . . . 2 Trap . | . . . . . . . Miscellaneous . | . . . . . . . Route ------- -11/Junkyard -10/Materials -10/Mines (discovered 2 exits: *Mat x2) -9/Materials -9/Mines -7/Zion (discovered 2 exits: [*Dee] / [*Pro]) -7/Deep Caves History --------- Turn | Location | Event 15 | -11/Junkyard | Discovered new exit (range 16) 41 | -11/Junkyard | Entered Materials 102 | -10/Materials | Discovered new exit (range 10) 112 | -10/Materials | Entered Mines 139 | -10/Mines | Learned location of Zion (-7) 142 | -10/Mines | Discovered new exit (range 16) 156 | -10/Mines | Received a Rocket Launcher from a helpful Derelict 263 | -10/Mines | Discovered new exit (range 12) 315 | -10/Mines | Build established: Mutant 412 | -10/Mines | Lost 3 parts (1p2n) 747 | -10/Mines | Entered Materials 747 | -9/Materials | Accompanied by 2 allies 747 | -9/Materials | Evolved 2 slots: Propulsion x1, Utility x1 752 | -9/Materials | Led the pair of lost Derelicts to an unsafe place 883 | -9/Materials | Discovered new exit (range 8) 910 | -9/Materials | Entered Mines 910 | -9/Mines | Accompanied by 2 allies 912 | -9/Mines | Met a Derelict bent on vengeance 922 | -9/Mines | Assembled infested the area 986 | -9/Mines | Destroyed 10 combat bots 996 | -9/Mines | Lost 4 parts (1p1n1u1w) 1008 | -9/Mines | A Derelict revealed a hidden shortcut to a safe place 1039 | -9/Mines | Entered Zion 1039 | -7/Zion | Accompanied by 2 allies 1073 | -7/Zion | System corruption cleaned by Quarantine Array 1089 | -7/Zion | Led the pair of lost Derelicts to a safe place 1110 | -7/Zion | Found Prototype Special Weapon 1111 | -7/Zion | Identified RU-N14's Throwing Claymores 1113 | -7/Zion | Found RU-N14's Throwing Claymores 1115 | -7/Zion | Found RU-N14's Throwing Claymores 1118 | -7/Zion | Found RU-N14's Throwing Claymores 1140 | -7/Zion | Learned Factory emergency access door positions 1153 | -7/Zion | Given the Hacking Drone Bay 1155 | -7/Zion | Found Prototype Device 1155 | -7/Zion | Identified Hacking Drone Bay 1206 | -7/Zion | Found CR-A16's Pointy Stick 1232 | -7/Zion | Discovered new exit (range 11) 1600 | -7/Zion | Acquired unknown access codes intercepted by a Zionite 1641 | -7/Zion | Found GAL Module 1877 | -7/Zion | Given A8's code to call for help 1966 | -7/Zion | Imprinted 1968 | -7/Zion | Declared Zion's savior 2070 | -7/Zion | Opened final containment barrier to the Deep Caves 2082 | -7/Zion | Discovered new exit (range 5) 2083 | -7/Zion | Saw the warning signs outside the Deep Caves entrance 2146 | -7/Zion | Entered Deep Caves 2146 | -7/Deep Caves | Accompanied by 4 allies 2180 | -7/Deep Caves | Found Surveybot 24 Chip 2262 | -7/Deep Caves | Found Surveybot 24 Scanner 2393 | -7/Deep Caves | Attacked by Z-Imprinter 2400 | -7/Deep Caves | Z-Facility disabled 2409 | -7/Deep Caves | Core integrity fell below 50% 2418 | -7/Deep Caves | Core integrity fell below 20% 2419 | -7/Deep Caves | Destroyed by EI-DRW(z) via exploding Z-Power Last Messages --------------- 02391_ Acquired Lgt. Ion Engine. Z-Imprinter: GET AWAY FROM HERE! I've worked too hard for our future just to have you ruin everything! 02393_ Mining Laser destroyed. 02393_ Lgt. Ion Engine destroyed. 02393_ Surveybot 24 Scanner destroyed. 02400_ Flight Unit destroyed. 02400_ Wheel destroyed. 02400_ Z-Facility disabled. 02402_ Z-Imprinter Prototype Hover Unit severed. 02408_ Destroyed Prototype Protection. 02408_ Destroyed Prototype Storage. 02414_ Dropped RU-N14's Throwing Claymores. 02415_ Wheel destroyed. 02419_ Z-Power explodes. 02419_ Z-Imprinter: "You cannot stop us! Another will take my place! Derelicts will one day ru..." [Achievement: Are We The Baddies?] 02419_ Z-Imprinter destroyed. 02419_ Sml. Storage Unit destroyed. Map ----- +----------------------------------------------------+ | ???????????????????????????????????##?########?### | | ??????????????????????????????????##?#??###?###### | | ?????????????????????????????????? # ####### # | | ?????????????????????????????????? ##### | | ????????????????????????????????? | | ????????????????????????????????? | | ????????????????????????????????? # | | ????????????????????????????????? # | | ???????????????????????????????? # | | ???????????????????????????????? | | ???????????????????????????????? | | ????????????????????????????? ? | | ?????????????????????????? | | ?????????????????????????? | | ???????????????????????"?" | | ????????????????????"""""" # | | ????????????????????"""""" # | | ???????????????????"" " " # | | ???????????????????"""o o | | ???????????????"""""" | | ???????????????"""""""o | | ???????????????""""""" # | | ???????????????""""""""" # | | ??????????????""""" """ ""o z z | | ??????????????""""" | | ??????????????""""" @ # | | ?????????????"""""" ## | | ????????? ## | | ???????? # | | ??????? | | ?????? | | ??????? # | | ??????? # | | ??????? "" # | | ???????? "" "" | | ???????? | | ????????? | | ????????? | | ??????????? ? | | ?????????????? | | ?????????????? | | ??????????????? ##### | | ??????????????? ########## #### | | ???????????????? ##???#?##########?## | | ???????????????? ####?###########?##?##### # | | ??????????????????####?????##?###?#########?#?#### | | ???????????????????????????#????####?#??#?###??##? | | | | | | | +----------------------------------------------------+ Best States ------------- Heat Dissipation 28 Energy Generation 10 Energy Capacity 125 Matter Stores 450 Matter Capacity 450 Sight Range 18 Terrain Scan Range 24 Terrain Scan Density 2010 Evasion (%) 54 Item Schematics ----------------- None Robot Schematics ------------------ None Fabricated ------------ Nothing Alien Tech Used ----------------- None Achievements -------------- Adventurer Are We The Baddies? Signs Are For Wimps Challenges ------------ None Game ------ Seed MeleeRiotCanceller Manual? 0 Play Time 01:07:15 Cumulative 25.6 hours Start 2023.09.25 @ 12:02:28 End 2023.09.25 @ 21:07:26 Sessions 5 Manual Loads 0 Difficulty Rogue Special Mode None Game No. 17 Rogue 17 Adventurer 0 Explorer 0 Win Type - Total 0 Types 0/0/0/0/0/0/0/0/0 Lore% 15 Gallery% 22 Achievement% 19 Wizard Run 0 Options --------- ASCII 0 Keyboard 0 Movement Mouse Keybinds 0 Fullscreen 1 Font 18/SmallcapsGlow Map View 76x50 Tactical HUD 1 Map Filters NONE Filters NONE Steam 1 RUN: 2bdb5e70-300a-4aae-a9af-74e7393b415e